[Event "Reykjavik Open 2022"]
[Site "Reykjavik"]
[Date "2022.04.07"]
[Round "3.1"]
[White "Cornette, Matthieu"]
[Black "Gukesh D"]
[Result "1/2-1/2"]
[ECO "B31"]
[WhiteElo "2571"]
[BlackElo "2614"]
[Annotator "TA"]
[PlyCount "68"]
[EventDate "2022.04.06"]
[EventCountry "ISL"]
[SourceTitle "playchess.com"]
[Source "ChessBase"]
[SourceQuality "1"]
[TimeControl "40/5400+30:1800+30"]

{[%evp 40,68,12,0,0,0,0,0,16,0,0,0,0,0,0,0,0,0,0,-30,0,-21,-15,-29,-15,-15,-16,-22,-22,-12,-8]} 1. e4 {[%emt 0:00:30]} c5 {[%emt 0:01:08]} 2. Nf3 {[%emt 0:00:00]} Nc6 {[%emt 0:00:51]} 3. Bb5 {[%emt 0:00:10]} g6 {[%emt 0:01:29]} 4. c3 {[%emt 0:01:20]} Nf6 {[%emt 0:02:49]} 5. Qe2 {[%emt 0:00:52]} Bg7 {[%emt 0:00:51]} 6. d4 {[%emt 0:01:43]} d5 {[%emt 0:07:14]} 7. e5 {[%emt 0:00:49]} Ne4 {[%emt 0:00:16]} 8. O-O {[%emt 0:00:30]} O-O {[%emt 0:00:48]} 9. Rd1 {[%emt 0:01:44]} cxd4 {[%emt 0:06:33]} 10. cxd4 {[%emt 0:00:46]} Bd7 {[%emt 0:03:32]} 11. Bxc6 {[%emt 0:03:23]} Bxc6 {[%emt 0:00:14]} 12. Ne1 {[%emt 0:00:09]} f6 {[%emt 0:01:52]} 13. f3 {[%emt 0:00:36]} Ng5 {[%emt 0:00:46]} 14. Bxg5 {[%emt 0:00:52]} fxg5 {[%emt 0:00:02]} 15. Nc3 {[%emt 0:06:16]} e6 {[%emt 0:01:25]} 16. Nd3 {[%emt 0:03:06]} Rc8 {[%emt 0:01:00]} 17. Rac1 {[%emt 0:06:51]} Rf7 {[%emt 0:00:16]} 18. Nc5 {[%emt 0:05:14]} Qe8 {[%emt 0:02:26]} 19. Qe3 {[%emt 0:05:33]} b6 {[%emt 0:05:29]} 20. Nd3 {[%emt 0:01:52]} Qd8 {[%emt 0:02:00]} 21. Rf1 {[%emt 0:05:48]} Bd7 {[%emt 0:09:26]} 22. Rf2 {[%emt 0:03:49]} Bf8 {[%emt 0:09:57]} 23. Rcf1 {[%emt 0:02:51]} b5 {[%emt 0:05:58]} 24. Ne2 {[%emt 0:06:06]} b4 {[%emt 0:00:06]} 25. Nc5 {[%emt 0:09:09]} Bxc5 {[%emt 0:02:34]} 26. dxc5 {[%emt 0:00:06]} Bb5 $1 {[%emt 0:02:32]} 27. Rc1 $1 {[%emt 0:04:38]} Bxe2 {[%emt 0:01:28]} 28. Rxe2 {[%emt 0:00:36]} Rc6 {[%emt 0:01:31]} 29. b3 {[%emt 0:04:30]} Rf5 {[%emt 0:01:49]} 30. Qd4 {[%emt 0:05:35]} a5 {[%emt 0:00:29]} 31. Qe3 {[%emt 0:04:57]} Qf8 {[%emt 0:03:10]} 32. Rf2 {[%emt 0:00:44]} Qb8 {[%emt 0:02:02]} 33. Re2 {[%emt 0:06:13]} Qd8 {[%emt 0:05:37]} 34. g3 {[%emt 0:02:05]} Qe7 {[%emt 0:00:47]} 1/2-1/2

[Event "Reykjavik Open 2022"]
[Site "Reykjavik"]
[Date "2022.04.07"]
[Round "3.2"]
[White "Niemann, Hans Moke"]
[Black "Beerdsen, Thomas"]
[Result "1-0"]
[ECO "B51"]
[WhiteElo "2642"]
[BlackElo "2508"]
[Annotator "TA"]
[PlyCount "59"]
[EventDate "2022.04.06"]
[EventCountry "ISL"]
[SourceTitle "playchess.com"]
[Source "ChessBase"]
[SourceQuality "1"]
[TimeControl "40/5400+30:1800+30"]

{[%evp 25,59,10,20,12,29,13,23,29,31,31,24,12,10,0,6,2,8,0,31,48,114,92,166,151,238,227,216,209,265,277,268,260,395,387,820,798]} 1. e4 {[%emt 0:02:01]} c5 {[%emt 0:01:47]} 2. Nf3 {[%emt 0:00:19]} d6 {[%emt 0:01:48]} 3. Bb5+ {[%emt 0:01:09]} Nd7 {[%emt 0:00:28]} 4. O-O {[%emt 0:00:09]} a6 {[%emt 0:07:45]} 5. Bd3 {[%emt 0:00:09]} Ngf6 {[%emt 0:01:26]} 6. Re1 {[%emt 0:00:07]} e5 {[%emt 0:06:34]} 7. a4 {[%emt 0:00:35]} Be7 {[%emt 0:01:00]} 8. c3 {[%emt 0:02:28]} O-O {[%emt 0:04:04]} 9. Bf1 {[%emt 0:00:23]} Re8 {[%emt 0:02:30]} 10. d4 {[%emt 0:00:36]} exd4 {[%emt 0:03:19]} 11. cxd4 {[%emt 0:00:07]} cxd4 {[%emt 0:00:19]} 12. Nxd4 {[%emt 0:00:12]} d5 {[%emt 0:04:31]} 13. exd5 {[%emt 0:03:32]} Nb6 {[%emt 0:04:09]} 14. Nc3 {[%emt 0:00:06]} Nbxd5 {[%emt 0:06:15]} 15. Qb3 {[%emt 0:02:24]} Bc5 {[%emt 0:11:27]} 16. Rxe8+ {[%emt 0:06:16]} Qxe8 {[%emt 0:00:14]} 17. Nxd5 {[%emt 0:01:02]} Bxd4 {[%emt 0:00:09]} 18. Nxf6+ {[%emt 0:06:33]} Bxf6 {[%emt 0:00:16]} 19. Be3 {[%emt 0:00:06]} Bd7 {[%emt 0:05:14]} 20. Qxb7 {[%emt 0:01:12]} Bc6 {[%emt 0:01:36]} 21. Qb4 {[%emt 0:02:09]} Rb8 {[%emt 0:03:08]} (21... a5 $5 {[%cal Ra5b4]} 22. Qd2 Bxa4 $11) 22. Bb6 {[%emt 0:04:52]} a5 {[%emt 0:10:12]} ({Black should play} 22... Bxa4 $1 $14 23. Rxa4 Be7) 23. Qxa5 $16 {[%emt 0:00:58]} Qe4 {[%emt 0:07:07] [#]} (23... Bxb2 $16 24. Re1 Qc8) 24. Rc1 $1 $18 {[%emt 0:06:54]} Bxb2 {[%emt 0:03:56]} (24... h6 $16 {keeps fighting.} 25. b3 Bb2) 25. Rc4 $18 {[%emt 0:00:18]} Qe6 {[%emt 0:05:01]} 26. Qc5 {[%emt 0:05:15]} Bd5 {[%emt 0:02:03] [#]} 27. Rc2 $1 {[%emt 0:00:37]} Be5 {[%emt 0:01:37]} 28. a5 {[%emt 0:02:40]} Qf5 {[%emt 0:03:48]} (28... Bd6 {was worth a try.} 29. Qe3 h6) 29. Bc7 $18 {[%emt 0:13:48]} Rc8 $2 {[%emt 0:01:08]} (29... Bxc7 30. Qxc7 Re8) 30. Qxd5 {[%emt 0:00:12]} 1-0

[Event "Reykjavik Open 2022"]
[Site "Reykjavik"]
[Date "2022.04.07"]
[Round "3.3"]
[White "Steingrimsson, Hedinn"]
[Black "Adhiban, B.."]
[Result "1/2-1/2"]
[ECO "E14"]
[WhiteElo "2535"]
[BlackElo "2648"]
[Annotator "TA"]
[PlyCount "55"]
[EventDate "2022.04.06"]
[EventCountry "ISL"]
[SourceTitle "playchess.com"]
[Source "ChessBase"]
[SourceQuality "1"]
[TimeControl "40/5400+30:1800+30"]

{[%evp 23,55,0,0,0,0,0,61,63,79,63,63,25,23,20,52,62,247,229,249,0,0,0,0,0,0,0,0,0,0,0,0,0,0,0]} 1. Nf3 {[%emt 0:00:09]} d5 {[%emt 0:11:22]} 2. d4 {[%emt 0:02:12]} e6 {[%emt 0:00:55]} 3. c4 {[%emt 0:02:29]} Nf6 {[%emt 0:03:32]} 4. Nc3 {[%emt 0:01:54]} c6 {[%emt 0:00:52]} 5. e3 {[%emt 0:00:35]} Nbd7 {[%emt 0:00:04]} 6. Qc2 {[%emt 0:00:22]} b6 {[%emt 0:03:11]} 7. cxd5 {[%emt 0:04:03]} exd5 {[%emt 0:00:27]} 8. Bd3 {[%emt 0:00:15]} Bb7 {[%emt 0:03:13]} 9. O-O {[%emt 0:00:21]} Be7 {[%emt 0:02:50]} 10. e4 {[%emt 0:05:28]} dxe4 {[%emt 0:02:23]} 11. Nxe4 {[%emt 0:00:04]} O-O {[%emt 0:02:14]} 12. Ne5 {[%emt 0:01:57]} c5 {[%emt 0:11:12]} 13. Ng5 {[%emt 0:02:54]} g6 {[%emt 0:04:29]} 14. Bc4 {[%emt 0:02:21]} Nd5 {[%emt 0:06:44]} (14... Bd5 $11) 15. Ngxf7 {[%emt 0:03:34]} Rxf7 {[%emt 0:00:22]} 16. Nxf7 {[%emt 0:00:09]} Kxf7 {[%emt 0:00:07]} 17. Qb3 {[%emt 0:00:48]} ({Reject} 17. Qe4 $6 N7f6 18. Qh4 Nh5 $11) (17. Rd1 $5 {[%cal Rd4c5]}) 17... N7f6 {[%emt 0:05:08]} 18. dxc5 {[%emt 0:01:34]} Bxc5 {[%emt 0:12:15]} 19. Bg5 {[%emt 0:06:01]} Qd7 $2 {[%emt 0:00:14]} (19... Qd6 $14) 20. Rad1 {[%emt 0:08:03]} Rd8 {[%emt 0:00:05]} (20... Qf5 $2 21. Bxf6 Kxf6 22. Bxd5 $18) 21. Qf3 $2 {[%emt 0:38:41]} ({White should play} 21. Bxf6 $18 Kxf6 22. Rd2 (22. Qg3 Qd6 $15)) 21... Qf5 $11 {[%emt 0:00:15]} 22. Qxf5 {[%emt 0:00:26]} gxf5 {[%emt 0:00:03]} 23. Rd3 {[%emt 0:00:12]} Kg6 {[%emt 0:05:15]} 24. Bxf6 {[%emt 0:04:10]} Kxf6 {[%emt 0:00:03]} 25. Rfd1 {[%emt 0:00:05]} Ke5 {[%emt 0:00:26]} 26. Re1+ {[%emt 0:00:38]} Kf6 {[%emt 0:00:05]} 27. Red1 {[%emt 0:01:12]} Ke5 {[%emt 0:00:06]} 28. Re1+ {[%emt 0:02:08]} 1/2-1/2

[Event "Reykjavik Open 2022"]
[Site "Reykjavik"]
[Date "2022.04.07"]
[Round "3.4"]
[White "Gupta, Abhijeet"]
[Black "Jarmula, Lukasz"]
[Result "0-1"]
[ECO "D40"]
[WhiteElo "2628"]
[BlackElo "2434"]
[Annotator "TA"]
[PlyCount "92"]
[EventDate "2022.04.06"]
[EventCountry "ISL"]
[SourceTitle "playchess.com"]
[Source "ChessBase"]
[SourceQuality "1"]
[TimeControl "40/5400+30:1800+30"]

{[%evp 57,92,-170,-170,-185,-67,-70,-87,-308,-293,-286,-273,-286,-241,-176,-15,-15,-16,-35,-41,-206,-181,-1101,-1140,-1741,-1653,-1566,-1591,-29952,-7067,-29978,-29979,-29980,-12359,-29979,-29979,-29976,-29957]} 1. d4 {[%emt 0:00:04]} d5 {[%emt 0:00:06]} 2. c4 {[%emt 0:00:12]} dxc4 {[%emt 0:00:07]} 3. Nf3 {[%emt 0:00:04]} Nf6 {[%emt 0:00:08]} 4. e3 {[%emt 0:00:09]} e6 {[%emt 0:00:05]} 5. Bxc4 {[%emt 0:00:05]} c5 {[%emt 0:00:05]} 6. O-O {[%emt 0:00:04]} Nc6 {[%emt 0:00:05]} 7. Nc3 {[%emt 0:07:10]} a6 {[%emt 0:00:09]} 8. a3 {[%emt 0:01:19]} b5 {[%emt 0:07:57]} 9. Ba2 {[%emt 0:03:45]} Bb7 {[%emt 0:00:08]} 10. Qe2 {[%emt 0:02:30]} Qc7 {[%emt 0:02:50]} 11. dxc5 {[%emt 0:05:19]} Bxc5 {[%emt 0:00:47]} 12. b4 {[%emt 0:00:45]} Bd6 {[%emt 0:03:24]} 13. Bb2 {[%emt 0:00:05]} Rd8 {[%emt 0:04:45]} 14. Rac1 {[%emt 0:00:24]} Qb8 {[%emt 0:02:19]} 15. Bb1 {[%emt 0:00:15]} Ne5 {[%emt 0:02:58]} 16. Nxe5 {[%emt 0:27:39]} Bxe5 {[%emt 0:00:07]} 17. f4 {[%emt 0:00:35]} Bc7 {[%emt 0:00:34]} 18. Kh1 {[%emt 0:08:09]} h5 {[%emt 0:10:26]} 19. Rfd1 {[%emt 0:03:14]} Rxd1+ {[%emt 0:10:15]} 20. Nxd1 {[%emt 0:01:06]} h4 {[%emt 0:18:52]} 21. Bxf6 {[%emt 0:05:38]} gxf6 {[%emt 0:01:18]} 22. Nf2 {[%emt 0:00:05]} h3 {[%emt 0:06:35]} 23. Be4 {[%emt 0:08:47]} hxg2+ {[%emt 0:07:39]} 24. Kxg2 {[%emt 0:01:31]} f5 {[%emt 0:02:29]} 25. Qc2 {[%emt 0:08:15]} Bxe4+ {[%emt 0:10:05]} 26. Nxe4 {[%emt 0:00:03]} Qa8 {[%emt 0:00:21]} 27. Kg1 {[%emt 0:04:43]} Qxe4 {[%emt 0:01:13]} 28. Qxe4 {[%emt 0:00:04]} fxe4 {[%emt 0:00:06]} 29. Rxc7 {[%emt 0:00:03]} Rh3 {[%emt 0:00:16]} 30. Rc3 {[%emt 0:02:20]} Kf8 {[%emt 0:03:29]} ({Black should play} 30... Ke7 $19 {Threatens to win with ...Kf6.} 31. Kg2 Rf3) 31. Kg2 $15 {[%emt 0:01:04]} Rf3 $1 {[%emt 0:00:07]} 32. Kg1 $2 {[%emt 0:02:41]} (32. Rc6 $17 {was necessary.}) 32... Kg7 {[%emt 0:00:18]} 33. Kg2 {[%emt 0:00:24]} Kg6 {[%emt 0:00:46]} 34. Kg1 {[%emt 0:01:07]} Kf5 {[%emt 0:01:09]} 35. Kg2 {[%emt 0:02:31]} e5 $2 {[%emt 0:01:37]} (35... Kg4 $19 {...Rh3 is the strong threat.} 36. Kg1 Kf5) 36. fxe5 $11 {[%emt 0:03:59]} Kxe5 {[%emt 0:00:08]} 37. Rc5+ {[%emt 0:01:17]} Kf6 {[%emt 0:00:31]} 38. Rc6+ $2 {[%emt 0:01:06] [#]} ({Only move:} 38. h4 $1 $15) 38... Kg5 $1 $19 {[%emt 0:00:11]} 39. Rxa6 $2 {[%emt 0:00:19]} (39. Rc7) 39... f5 $19 {[%emt 0:01:43]} ({But not} 39... Rxe3 $2 40. Ra5 $19) 40. Rb6 {[%emt 0:00:00]} Rxe3 {[%emt 0:00:00]} 41. Rxb5 {[%emt 0:00:59]} Rxa3 {[%emt 0:01:31]} 42. Rb8 {[%emt 0:06:20]} Ra2+ {[%emt 0:09:30]} 43. Kh3 {[%emt 0:00:04]} Kf4 {[%emt 0:01:46]} 44. b5 {[%emt 0:00:04]} Kf3 {[%emt 0:01:09]} (44... e3 $142 45. Rc8 Rb2 46. Rc4+ Kf3 47. Rc5 e2 48. Rc3+ Kf2 49. Rc1 f4 50. Kg4 f3 51. h3 Rxb5 52. Rc2 Rb4+ 53. Kf5 Kf1 54. Rc3 f2 55. Re3 e1=Q 56. Re5 Rb6 57. Kf4 Kg2 58. Rg5+ Kh2 59. Rg3 f1=Q+ 60. Rf3 Qg2 61. Kf5 Qxf3+ 62. Kg5 Qeg3#) 45. b6 {[%emt 0:01:02]} Rb2 {[%emt 0:00:35]} 46. Kh4 {[%emt 0:01:30]} f4 {[%emt 0:00:31]} 0-1

[Event "Reykjavik Open 2022"]
[Site "Reykjavik"]
[Date "2022.04.07"]
[Round "3.5"]
[White "Maze, Sebastien"]
[Black "Warmerdam, Max"]
[Result "1/2-1/2"]
[ECO "B46"]
[WhiteElo "2527"]
[BlackElo "2607"]
[Annotator "TA"]
[PlyCount "26"]
[EventDate "2022.04.06"]
[EventCountry "ISL"]
[SourceTitle "playchess.com"]
[Source "ChessBase"]
[SourceQuality "1"]
[TimeControl "40/5400+30:1800+30"]

{[%evp 18,26,13,14,15,0,0,2,19,23,32]} 1. e4 {[%emt 0:00:03]} c5 {[%emt 0:00:18]} 2. Nf3 {[%emt 0:00:04]} e6 {[%emt 0:00:26]} 3. d4 {[%emt 0:00:49]} cxd4 {[%emt 0:00:07]} 4. Nxd4 {[%emt 0:00:03]} Nc6 {[%emt 0:01:01]} 5. Nc3 {[%emt 0:00:10]} Qc7 {[%emt 0:02:49]} 6. f4 {[%emt 0:00:46]} a6 {[%emt 0:00:15]} 7. Nxc6 {[%emt 0:00:41]} bxc6 {[%emt 0:00:28]} 8. Bd3 {[%emt 0:00:11]} d5 {[%emt 0:00:14]} 9. O-O {[%emt 0:00:08]} Nf6 {[%emt 0:00:17]} 10. Qe2 {[%emt 0:00:43]} Be7 {[%emt 0:00:07] B46: Sicilian: Taimanov: 5 Nc3 a6.} 11. Bd2 {[%emt 0:00:14]} O-O {[%emt 0:02:22]} 12. Rae1 {[%emt 0:00:45]} g6 {[%emt 0:01:59]} 13. b3 {[%emt 0:02:13] [#]} dxe4 $146 {[%emt 0:12:58] An interesting draw.  Weighted Error Value: White=0.03 (flawless) /Black=0.05 (flawless)} ({Predecessor:} 13... a5 14. Rf3 dxe4 15. Nxe4 Nxe4 16. Bxe4 Ba6 17. Qf2 Rfd8 18. Bc3 Bb4 19. Bxb4 axb4 {1-0 (37) Vocaturo,D (2626)-Javakhishvili,L (2452) Caleta 2019}) 1/2-1/2

[Event "Reykjavik Open 2022"]
[Site "Reykjavik"]
[Date "2022.04.07"]
[Round "3.6"]
[White "Larkin, Vladyslav"]
[Black "Fier, Alexandr"]
[Result "1/2-1/2"]
[ECO "B31"]
[WhiteElo "2399"]
[BlackElo "2583"]
[Annotator "TA"]
[PlyCount "119"]
[EventDate "2022.04.06"]
[EventCountry "ISL"]
[SourceTitle "playchess.com"]
[Source "ChessBase"]
[SourceQuality "1"]
[TimeControl "40/5400+30:1800+30"]

{[%evp 76,119,84,31,174,104,112,73,165,152,376,269,636,636,636,629,629,602,29991,83,90,0,0,0,0,0,0,0,8,0,0,0,0,0,0,0,0,0,0,0,0,0,0,0,0,0]} 1. e4 {[%emt 0:07:30]} c5 {[%emt 0:00:05]} 2. Nf3 {[%emt 0:00:12]} Nc6 {[%emt 0:00:04]} 3. Bb5 {[%emt 0:00:13]} g6 {[%emt 0:00:05]} 4. Bxc6 {[%emt 0:00:29]} bxc6 {[%emt 0:00:05]} 5. O-O {[%emt 0:00:11]} Bg7 {[%emt 0:00:03]} 6. Re1 {[%emt 0:00:04]} Nf6 {[%emt 0:00:04]} 7. c3 {[%emt 0:00:34]} O-O {[%emt 0:00:16]} 8. h3 {[%emt 0:00:18]} d6 {[%emt 0:00:05]} 9. d4 {[%emt 0:00:11]} cxd4 {[%emt 0:00:04]} 10. cxd4 {[%emt 0:00:04]} Rb8 {[%emt 0:00:05]} 11. Nc3 {[%emt 0:00:26]} Nd7 {[%emt 0:00:04]} 12. b3 {[%emt 0:11:44]} c5 {[%emt 0:01:22]} 13. Be3 {[%emt 0:00:34]} Bb7 {[%emt 0:00:07]} 14. Rc1 {[%emt 0:00:31]} Qa5 {[%emt 0:02:46]} 15. Qd2 {[%emt 0:01:24]} Rfc8 {[%emt 0:03:14]} 16. dxc5 {[%emt 0:25:45]} Nxc5 {[%emt 0:00:59]} 17. Bd4 {[%emt 0:00:06]} Bf8 {[%emt 0:03:36]} 18. Rc2 {[%emt 0:15:31]} e5 {[%emt 0:07:48]} 19. Bxc5 {[%emt 0:00:05]} Rxc5 {[%emt 0:01:07]} 20. b4 {[%emt 0:16:05]} Qxb4 {[%emt 0:00:30]} 21. Rb1 {[%emt 0:00:05]} Qc4 {[%emt 0:06:16]} 22. Rb3 {[%emt 0:00:41]} Rcc8 {[%emt 0:01:43]} 23. Rcb2 {[%emt 0:00:28]} Qc7 {[%emt 0:00:12]} 24. Qd3 {[%emt 0:09:23]} Bc6 {[%emt 0:02:45]} 25. Qa6 {[%emt 0:00:50]} Rxb3 {[%emt 0:01:34]} 26. Rxb3 {[%emt 0:00:07]} Bh6 {[%emt 0:01:19]} 27. g3 {[%emt 0:02:47]} Qd7 {[%emt 0:02:54]} 28. Kg2 {[%emt 0:01:11]} f5 {[%emt 0:00:05]} 29. Nd5 {[%emt 0:00:22]} Kg7 {[%emt 0:01:46]} 30. Ne7 {[%emt 0:01:03]} Rc7 {[%emt 0:05:47]} 31. Nxc6 {[%emt 0:00:08]} Rxc6 {[%emt 0:00:07]} 32. Qd3 {[%emt 0:00:29]} Rc7 {[%emt 0:00:50]} 33. exf5 {[%emt 0:01:37]} Qc6 {[%emt 0:07:40]} 34. fxg6 {[%emt 0:00:12]} hxg6 {[%emt 0:00:09]} 35. Rb4 {[%emt 0:03:48]} Rf7 {[%emt 0:02:43]} 36. Rg4 {[%emt 0:00:00]} Rf6 {[%emt 0:00:04]} 37. h4 {[%emt 0:00:00]} Qc8 {[%emt 0:02:30]} 38. Rc4 {[%emt 0:00:10]} Qb7 {[%emt 0:00:03]} 39. Ra4 {[%emt 0:02:00]} (39. Qc3 $16 {Threatens to win with Rc7+.} Qd5 40. Rc7+ Rf7 41. Rxf7+ Qxf7 42. Qc6) 39... Qb6 {[%emt 0:01:36]} (39... Kh8 $14) 40. Qa3 {[%emt 0:00:00]} (40. Qd5 $18) 40... a5 $16 {[%emt 0:00:00]} 41. Qb3 {[%emt 0:06:46]} Qa7 {[%emt 0:05:43] [#]} (41... Qxb3 $16 42. axb3 Rf8) 42. Qd5 $1 $18 {[%emt 0:00:24]} Qb6 $2 {[%emt 0:04:59]} (42... Qf7 $16 {is a better defense.} 43. Rxa5 Qxd5 44. Rxd5 Kf7 45. Ng5+ Bxg5) 43. Rc4 {[%emt 0:07:49]} Qb2 $2 {[%emt 0:04:33]} (43... Kh8 44. Rc6 Qb7 45. Rxd6 Qxd5 46. Rxd5 e4) 44. Rc8 $18 {[%emt 0:00:26]} Rf7 {[%emt 0:00:41]} 45. Qxd6 {[%emt 0:06:22]} Be3 {[%emt 0:02:24]} 46. Kh3 {[%emt 0:05:19]} Rxf3 {[%emt 0:01:45]} 47. Rc7+ $2 {[%emt 0:00:15]} ({Not} 47. fxe3 Qb5 $16) (47. Qd7+ {mates} Rf7 48. Qd8 g5 49. h5 (49. fxe3 {is a self mate.} g4+ 50. Kxg4 Qe2+ 51. Kg5 Qxe3+ 52. Kh5 Qh6+ 53. Kg4 Qe6+ 54. Kh5 Qg6#) 49... g4+ 50. Kh4 Rxf2 51. Qh8+ Kf7 52. Qe8+ Kf6 53. Rc6+ Kg7 54. Rg6+ Kh7 55. Qg8#) 47... Rf7 $16 {[%emt 0:00:41]} 48. Rxf7+ {[%emt 0:00:05]} (48. fxe3 $16 {[%cal Oh4h5] Strongly threatening h5!} Qb5 49. Rxf7+ Kxf7 50. Qd1) 48... Kxf7 $11 {[%emt 0:00:02]} 49. Qd5+ {[%emt 0:00:05]} Kf6 {[%emt 0:02:44]} 50. fxe3 {[%emt 0:00:12]} Qf2 {[%emt 0:00:21]} 51. Qc6+ {[%emt 0:01:00]} Kg7 {[%emt 0:00:49]} 52. Qc7+ {[%emt 0:03:58]} Kh6 {[%emt 0:00:19]} 53. Qxe5 {[%emt 0:00:31]} Qf1+ {[%emt 0:00:04]} 54. Kg4 {[%emt 0:00:12]} Qd1+ {[%emt 0:00:03]} 55. Kf4 {[%emt 0:00:28]} Qf1+ {[%emt 0:00:03]} 56. Ke4 {[%emt 0:00:16]} Qb1+ {[%emt 0:00:02]} 57. Kd4 {[%emt 0:01:52]} Qb2+ {[%emt 0:00:03]} 58. Ke4 {[%emt 0:00:18]} Qb1+ {[%emt 0:00:04]} 59. Kd4 {[%emt 0:00:30]} Qb2+ {[%emt 0:00:04]} 60. Ke4 {[%emt 0:01:40]} 1/2-1/2

[Event "Reykjavik Open 2022"]
[Site "Reykjavik"]
[Date "2022.04.07"]
[Round "3.7"]
[White "Idani, Pouya"]
[Black "Tania, Sachdev"]
[Result "1-0"]
[ECO "C88"]
[WhiteElo "2621"]
[BlackElo "2392"]
[Annotator "TA"]
[PlyCount "71"]
[EventDate "2022.04.06"]
[EventCountry "ISL"]
[SourceTitle "playchess.com"]
[Source "ChessBase"]
[SourceQuality "1"]
[TimeControl "40/5400+30:1800+30"]

{[%evp 27,71,17,32,28,24,14,18,11,30,29,31,31,33,24,58,37,28,23,41,45,68,18,103,108,157,112,172,168,238,232,324,346,342,344,322,301,515,381,339,330,1345,1284,29980,29981,29992,29993]} 1. e4 {[%emt 0:00:03]} e5 {[%emt 0:00:03]} 2. Nf3 {[%emt 0:00:19]} Nc6 {[%emt 0:00:05]} 3. Bb5 {[%emt 0:00:03]} a6 {[%emt 0:00:03]} 4. Ba4 {[%emt 0:00:11]} Nf6 {[%emt 0:00:13]} 5. O-O {[%emt 0:00:40]} Be7 {[%emt 0:00:12]} 6. Re1 {[%emt 0:02:24]} b5 {[%emt 0:00:36]} 7. Bb3 {[%emt 0:00:05]} O-O {[%emt 0:00:08]} 8. a4 {[%emt 0:00:11]} b4 {[%emt 0:01:18]} 9. d4 {[%emt 0:00:06]} d6 {[%emt 0:00:45]} 10. dxe5 {[%emt 0:00:05]} dxe5 {[%emt 0:00:38]} 11. Qe2 {[%emt 0:06:01]} h6 {[%emt 0:10:59]} 12. Be3 {[%emt 0:04:34]} Bd6 {[%emt 0:03:34]} 13. Nbd2 {[%emt 0:02:51]} Na5 {[%emt 0:05:19]} 14. Ba2 {[%emt 0:18:14]} Ng4 {[%emt 0:21:17]} 15. Nf1 {[%emt 0:02:34]} Rb8 {[%emt 0:07:43]} 16. N3d2 {[%emt 0:06:31]} Nxe3 {[%emt 0:14:49]} 17. Nxe3 {[%emt 0:01:20]} Bc5 {[%emt 0:00:10]} 18. Nf3 {[%emt 0:10:39]} Bxe3 {[%emt 0:02:25]} 19. Qxe3 {[%emt 0:00:06]} Qe7 {[%emt 0:00:09]} 20. Rad1 {[%emt 0:01:52]} Bg4 {[%emt 0:06:46]} 21. h3 {[%emt 0:05:47]} Bxf3 {[%emt 0:04:20]} 22. Qxf3 {[%emt 0:00:05]} Qe8 {[%emt 0:15:19]} 23. Bb3 {[%emt 0:02:46]} Nc6 {[%emt 0:03:07]} 24. Qd3 {[%emt 0:02:50]} ({White should try} 24. Rd5 $14) 24... Qc8 {[%emt 0:01:39]} (24... Rb6 $1 $11) 25. Bc4 $16 {[%emt 0:03:46]} Rb6 {[%emt 0:00:06]} (25... Qe8 $142) 26. Qd7 {[%emt 0:03:52]} Qb8 {[%emt 0:01:03]} (26... Qxd7 $16 27. Rxd7 Na5 28. Rxc7 Nxc4 29. Rxc4 Rd8) 27. Qd5 $18 {[%emt 0:02:51]} Nd4 {[%emt 0:00:35]} (27... a5 $142 28. Qc5 Rd8) 28. Qxe5 $18 {[%emt 0:01:38]} Nxc2 {[%emt 0:00:22]} 29. Re2 {[%emt 0:01:52]} b3 {[%emt 0:00:03]} 30. Red2 {[%emt 0:00:50]} Rf6 {[%emt 0:01:03]} 31. Qe7 {[%emt 0:02:02]} Rd6 $2 {[%emt 0:00:34]} (31... Qe8 {was necessary.} 32. Rd7 (32. Qxc7 Rc6 $17) 32... Qxe7 33. Rxe7 Rd6 34. Rxd6 cxd6 35. Bxb3 Nd4) 32. Rxd6 {[%emt 0:01:11]} cxd6 {[%emt 0:00:04]} 33. Rxd6 {[%emt 0:01:42]} Kh7 $2 {[%emt 0:00:46]} (33... Qc8) 34. e5 $18 {[%emt 0:02:21]} Nb4 {[%emt 0:00:43]} 35. Bxf7 {[%emt 0:02:53]} Rc8 {[%emt 0:00:30]} 36. Rxh6+ {[%emt 0:00:55]} 1-0